Workbook

Sheet 01.01.09 Base
A1: Avista Utilities
A2: Washington - Gas - Test Year Calculations for Decoupling
A3: 2007 - Docket No. UG-080417
A6: Schedule 101 | D6: Per BJH(1) | E6: Annual Total | F6: January | G6: February | H6: March | I6: April | J6: May | K6: June | L6: July | M6: August | N6: September | O6: October | P6: November | Q6: December
A7: Therms
A8: Usage from Revenue Run(2) | D8: 115583967 | E8: =SUM(F8:Q8) -> 115583967 | F8: =E40 -> 21292599 | G8: 21234566 | H8: 14472322 | I8: 9724124 | J8: 6113562 | K8: 3664833 | L8: 2462636 | M8: 2010203 | N8: 2332936 | O8: 4484817 | P8: 9398517 | Q8: 18392852
A9: Ded: Prior Mo. Unbilled(2) | D9: -12030752 | E9: =SUM(F9:Q9) -> -73860142 | F9: =-E72 -> -12031121 | G9: =-F10 -> -13080128 | H9: -9183384 | I9: -6818622 | J9: -5528289 | K9: -3344977 | L9: -1756030 | M9: -1252074 | N9: -1306999 | O9: -2341020 | P9: -6393005 | Q9: -10824493
A10: Add: Current Mo. Unbilled(2) | D10: 12425609 | E10: =SUM(F10:Q10) -> 74254377 | F10: =F72 -> 13080128 | G10: 9183384 | H10: 6818622 | I10: 5528289 | J10: 3344977 | K10: 1756030 | L10: 1252074 | M10: 1306999 | N10: 2341020 | O10: 6393005 | P10: 10824493 | Q10: 12425356
A11: Add: Weather Adjustment(2) | D11: 612353 | E11: =SUM(F11:Q11) -> 612353 | F11: =E56 -> -2152492 | G11: 751774 | H11: 1312963 | I11: -642747 | J11: 722661 | K11: 40108 | L11: 0 | M11: 0 | N11: 0 | O11: -134804 | P11: 0 | Q11: 714890
A12: Test Year Monthly Therms | D12: =SUM(D8:D11) -> 116591177 | E12: 116590555 | F12: 20189114 | G12: 18089596 | H12: 13420523 | I12: 7791044 | J12: 4652911 | K12: 2115994 | L12: 1958680 | M12: 2065128 | N12: 3366957 | O12: 8401998 | P12: 13830005 | Q12: 20708605
B14: Adjust to Annual Pro Forma | E14: =D12-E12 -> 622 | F14: =D9-F9 -> 369 | G14: 0 | H14: 0 | I14: 0 | J14: 0 | K14: 0 | L14: 0 | M14: 0 | N14: 0 | O14: 0 | P14: 0 | Q14: =D10-Q10 -> 253
A16: Monthly Pro Forma Therms | E16: =SUM(F16:Q16) -> 116591177 | F16: =F12+F14 -> 20189483 | G16: 18089596 | H16: 13420523 | I16: 7791044 | J16: 4652911 | K16: 2115994 | L16: 1958680 | M16: 2065128 | N16: 3366957 | O16: 8401998 | P16: 13830005 | Q16: 20708858
A18: Customers / Billings
A19: Test Yr Customers/Billings(2) | D19: 1673784 | E19: =SUM(F19:Q19) -> 1673784 | F19: =E81 -> 138804 | G19: 139210 | H19: 139055 | I19: 139113 | J19: 139012 | K19: 138838 | L19: 138877 | M19: 139096 | N19: 139568 | O19: 140039 | P19: 140930 | Q19: 141242
A20: Test Year Average Use/Cust | E20: =E16/E19 -> 69.65724191 | F20: 145.4531786 | G20: 129.9446591 | H20: 96.51233685 | I20: 56.00514689 | J20: 33.47129025 | K20: 15.24074101 | L20: 14.10370328 | M20: 14.84678208 | N20: 24.12413304 | O20: 59.99755782 | P20: 98.13386078 | Q20: 146.6196882
A22: Sch 101 Base Rate/therm(3) | E22: 1.13793
A23: Times: 1 minus Revenue Related Items (4) | E23: 0.956981
A24: Revenue prior to gross up | E24: =E22*E23 -> 1.088977389
A25: Less: Weighted Average Gas Cost/therm(5) | E25: =-0.84697 -> -0.84697
A26: Margin Rate/therm | E26: =E24+E25 -> 0.2420073893
A30: (1) From Hirschkorn workpapers in Docket No. UG-080417 BJH -17, BJH -14, BJH - 22, and BJH - 1
A31: (2) From 2007 Monthly Data (below)
A32: (3) From Hirschkorn Exhibit No. ___(BJH-6), page 1 Proposed Schedule 101 per therm rate
A33: (4) From Andrews Exhibit No.___(EMA-3), page 3, line 7
A34: (5) From Andrews workpaper I15, cost of gas included in base rates.
A35: (6) From Hirschkorn workpapers in Docket No. UG-080417 BJH -22, BJH -21, BJH -23, BJH -25 and BJH -15
A37: 2007 Monthly Data
B39: Revenue Run Therms | E39: 2007-01-01 | F39: 2007-02-01 | G39: 2007-03-01 | H39: 2007-04-01 | I39: 2007-05-01 | J39: 2007-06-01 | K39: 2007-07-01 | L39: 2007-08-01 | M39: 2007-09-01 | N39: 2007-10-01 | O39: 2007-11-01 | P39: 2007-12-01 | Q39: Total
B40: Total 101 | E40: 21292599 | F40: 21234566 | G40: 14472322 | H40: 9724124 | I40: 6113562 | J40: 3664833 | K40: 2462636 | L40: 2010203 | M40: 2332936 | N40: 4484817 | O40: 9398517 | P40: 18392852 | Q40: 112983336
B42: Weather Normalization
E43: 2007-01-01 | F43: 2007-02-01 | G43: 2007-03-01 | H43: 2007-04-01 | I43: 2007-05-01 | J43: 2007-06-01 | K43: 2007-07-01 | L43: 2007-08-01 | M43: 2007-09-01 | N43: 2007-10-01 | O43: 2007-11-01 | P43: 2007-12-01 | Q43: Total
B44: Normal Degree Days (25 Year Average 1983 - 2007) | E44: 1105 | F44: 912 | G44: 768 | H44: 536 | I44: 324 | J44: 139 | K44: 37 | L44: 34 | M44: 189 | N44: 543 | O44: 894 | P44: 1171 | Q44: =SUM(E44:P44) -> 6652
B45: Actual Degree Days | E45: 1243 | F45: 864 | G45: 684 | H45: 584 | I45: 270 | J45: 136 | K45: 0 | L45: 27 | M45: 194 | N45: 553 | O45: 894 | P45: 1126 | Q45: =SUM(E45:P45) -> 6575
B46: Degree Day Adjustment (1,6) | E46: -138 | F46: 48 | G46: 84 | H46: -48 | I46: 54 | J46: 3 | K46: 37 | L46: 7 | M46: -5 | N46: -10 | O46: 0 | P46: 45 | Q46: =SUM(E46:P46) -> 77
D47: Monthly
B48: Res 101 | D48: Use/DD/Cust(6) | E48: 0.1005 | F48: 0.1005 | G48: 0.1005 | H48: 0.0896 | I48: 0.0896 | J48: 0.0896 | K48: 0 | L48: 0 | M48: 0 | N48: 0.0896 | O48: 0.0896 | P48: 0.1005
B49: Com 101 | D49: Use/DD/Cust(6) | E49: 0.2427 | F49: 0.2427 | G49: 0.2427 | H49: 0.1688 | I49: 0.1688 | J49: 0.1688 | K49: 0 | L49: 0 | M49: 0 | N49: 0.1688 | O49: 0.1688 | P49: 0.2427
B50: Ind 101 | D50: Use/DD/Cust(6) | E50: 0.4222 | F50: 0.4222 | G50: 0.4222 | H50: 0.3055 | I50: 0.3055 | J50: 0.3055 | K50: 0 | L50: 0 | M50: 0 | N50: 0.3055 | O50: 0.3055 | P50: 0.4222
B52: Sch. 101
B53: Res 101 | E53: =ROUND(E$46*E48*E77,0) -> -1765330 | F53: 615258 | G53: 1076271 | H53: -548472 | I53: 616485 | J53: 34195 | K53: 0 | L53: 0 | M53: 0 | N53: -115020 | O53: 0 | P53: 585320 | Q53: =SUM(E53:P53) -> 498707
B54: Com 101 | E54: =ROUND(E$46*E49*E78,0) -> -382151 | F54: 134530 | G54: 233429 | H54: -92926 | I54: 104642 | J54: 5826 | K54: 0 | L54: 0 | M54: 0 | N54: -19500 | O54: 0 | P54: 127803 | Q54: =SUM(E54:P54) -> 111653
B55: Ind 101 | E55: =ROUND(E$46*E50*E79,0) -> -5011 | F55: 1986 | G55: 3263 | H55: -1349 | I55: 1534 | J55: 87 | K55: 0 | L55: 0 | M55: 0 | N55: -284 | O55: 0 | P55: 1767 | Q55: =SUM(E55:P55) -> 1993
B56: Total 101 | E56: =SUM(E53:E55) -> -2152492 | F56: 751774 | G56: 1312963 | H56: -642747 | I56: 722661 | J56: 40108 | K56: 0 | L56: 0 | M56: 0 | N56: -134804 | O56: 0 | P56: 714890 | Q56: 612353
B59: Monthly Unbilled Calculation
E60: 2006-12-01 | F60: 2007-01-01 | G60: 2007-02-01 | H60: 2007-03-01 | I60: 2007-04-01 | J60: 2007-05-01 | K60: 2007-06-01 | L60: 2007-07-01 | M60: 2007-08-01 | N60: 2007-09-01 | O60: 2007-10-01 | P60: 2007-11-01 | Q60: 2007-12-01
B61: Unbilled DDH (6) | E61: 689.9 | F61: 760.6 | G61: 508 | H61: 386.3 | I61: 317.6 | J61: 154.9 | K61: 75.2 | L61: 0.4 | M61: 21.1 | N61: 161.9 | O61: 377.3 | P61: 642.8 | Q61: 702.2
B62: Unbilled Factor (6) | E62: 0.6223 | F62: 0.5945 | G62: 0.5981 | H62: 0.5925 | I62: 0.622 | J62: 0.6208 | K62: 0.6125 | L62: 0.6117 | M62: 0.6375 | N62: 0.6092 | O62: 0.6331 | P62: 0.6615 | Q62: 0.61
C63: 07 Baseld(1) | D63: Monthly
B64: Res 101 | C64: 15 | D64: Use/DD/Cust(6) | E64: 0.1005 | F64: 0.1005 | G64: 0.1005 | H64: =(G64+I64)/2 -> 0.09505 | I64: 0.0896 | J64: 0.0896 | K64: =(J64+L64)/2 -> 0.0448 | L64: 0 | M64: 0 | N64: =(M64+O64)/2 -> 0.0448 | O64: 0.0896 | P64: =(O64+Q64)/2 -> 0.09505 | Q64: 0.1005
B65: Com 101 | C65: 12 | D65: Use/DD/Cust(6) | E65: 0.2427 | F65: 0.2427 | G65: 0.2427 | H65: =(G65+I65)/2 -> 0.20575 | I65: 0.1688 | J65: 0.1688 | K65: =(J65+L65)/2 -> 0.0844 | L65: 0 | M65: 0 | N65: =(M65+O65)/2 -> 0.0844 | O65: 0.1688 | P65: =(O65+Q65)/2 -> 0.20575 | Q65: 0.2427
B66: Ind 101 | C66: 0 | D66: Use/DD/Cust(6) | E66: 0.4222 | F66: 0.4222 | G66: 0.4222 | H66: =(G66+I66)/2 -> 0.36385 | I66: 0.3055 | J66: 0.3055 | K66: =(J66+L66)/2 -> 0.15275 | L66: 0 | M66: 0 | N66: =(M66+O66)/2 -> 0.15275 | O66: 0.3055 | P66: =(O66+Q66)/2 -> 0.36385 | Q66: 0.4222
B68: Sch. 101
B69: Res 101 | E69: =ROUND((E$61*E64)*D77,0)+ROUND(($C64*E$62)*D77,0) -> 9997157 | F69: 10864853 | G69: 7655712 | H69: 5814221 | I69: 4818895 | J69: 2954886 | K69: 1597370 | L69: 1167637 | M69: 1219047 | N69: 2096392 | O69: 5558795 | P69: 9177145 | Q69: 10317824
B70: Com 101 | E70: =ROUND((E$61*E65)*D78,0)+ROUND(($C65*E$62)*D78,0) -> 2006875 | F70: 2187658 | G70: 1506653 | H70: 991470 | I70: 700468 | J70: 385690 | K70: 157569 | L70: 84437 | M70: 87952 | N70: 242279 | O70: 823490 | P70: 1625831 | Q70: 2079960
B71: Ind 101 | E71: =ROUND((E$61*E66)*D79,0)+ROUND(($C66*E$62)*D79,0) -> 27089 | F71: 27617 | G71: 21019 | H71: 12931 | I71: 8926 | J71: 4401 | K71: 1091 | L71: 0 | M71: 0 | N71: 2349 | O71: 10720 | P71: 21517 | Q71: 27572
B72: Total | E72: =SUM(E69:E71) -> 12031121 | F72: 13080128 | G72: 9183384 | H72: 6818622 | I72: 5528289 | J72: 3344977 | K72: 1756030 | L72: 1252074 | M72: 1306999 | N72: 2341020 | O72: 6393005 | P72: 10824493 | Q72: 12425356
B75: Revenue Run Customers (Meters Billed)
C76: Class | D76: 2006-12-01 | E76: 2007-01-01 | F76: 2007-02-01 | G76: 2007-03-01 | H76: 2007-04-01 | I76: 2007-05-01 | J76: 2007-06-01 | K76: 2007-07-01 | L76: 2007-08-01 | M76: 2007-09-01 | N76: 2007-10-01 | O76: 2007-11-01 | P76: 2007-12-01 | Q76: 2007 Total
B77: Residential 101 | C77: 01 | D77: 127078 | E77: 127286 | F77: 127541 | G77: 127490 | H77: 127528 | I77: 127415 | J77: 127215 | K77: 127256 | L77: 127482 | M77: 127898 | N77: 128371 | O77: 129218 | P77: 129424 | Q77: =SUM(E77:P77) -> 1534124
B78: Commercial 101 | C78: 21 | D78: 11474 | E78: 11410 | F78: 11548 | G78: 11450 | H78: 11469 | I78: 11480 | J78: 11504 | K78: 11503 | L78: 11497 | M78: 11551 | N78: 11552 | O78: 11597 | P78: 11702 | Q78: =SUM(E78:P78) -> 138263
B79: Industrial 101 | C79: 31 | D79: 93 | E79: 86 | F79: 98 | G79: 92 | H79: 92 | I79: 93 | J79: 95 | K79: 94 | L79: 93 | M79: 95 | N79: 93 | O79: 92 | P79: 93 | Q79: =SUM(E79:P79) -> 1116
B80: Interdepartmental 101 | C80: 80 | D80: 22 | E80: 22 | F80: 23 | G80: 23 | H80: 24 | I80: 24 | J80: 24 | K80: 24 | L80: 24 | M80: 24 | N80: 23 | O80: 23 | P80: 23 | Q80: =SUM(E80:P80) -> 281
B81: Total | D81: =SUM(D77:D80) -> 138667 | E81: 138804 | F81: 139210 | G81: 139055 | H81: 139113 | I81: 139012 | J81: 138838 | K81: 138877 | L81: 139096 | M81: 139568 | N81: 140039 | O81: 140930 | P81: 141242 | Q81: 1673784

Sheet UG-090135 Base
A1: Avista Utilities
A2: Washington - Gas - Test Year Calculations for Decoupling
A3: 12 Months Ended September 2008 - Docket No. UG-090135
A4: 12 MONTHS ENDED SEPTEMBER 2008 TEST YEAR BASE
A5: Allowed Docket No. UG-090135
A8: Schedule 101 | D8: Per BJH(1) | E8: Annual Total | F8: January | G8: February | H8: March | I8: April | J8: May | K8: June | L8: July | M8: August | N8: September | O8: October | P8: November | Q8: December
A9: Therms
A10: Usage from Revenue Run(2) | D10: 124456548 | E10: =SUM(F10:Q10) -> 124456548 | F10: =H45 -> 20755627 | G10: 22514347 | H10: 14859076 | I10: 13629159 | J10: 8714627 | K10: 4232714 | L10: 2763613 | M10: 2223233 | N10: 2487966 | O10: =E45 -> 4484817 | P10: =F45 -> 9398517 | Q10: =G45 -> 18392852
A11: Ded: Prior Mo. Unbilled(2) | D11: =-2516904-0.49 -> -2516904.49 | E11: =SUM(F11:Q11) -> -79369540.49 | F11: =-H77 -> -12430831 | G11: =-I77 -> -13260094 | H11: -10089194 | I11: -9329893 | J11: -7012777 | K11: -3198435 | L11: -1795216 | M11: -1318706 | N11: -1383090 | O11: =-E80 -> -2516904.49 | P11: =-F77 -> -6292391 | Q11: =-G77 -> -10742009
A12: Add: Current Mo. Unbilled(2) | D12: =1974771-0.49 -> 1974770.51 | E12: =SUM(F12:Q12) -> 78827406.51 | F12: =I77 -> 13260094 | G12: =J77 -> 10089194 | H12: 9329893 | I12: 7012777 | J12: 3198435 | K12: 1795216 | L12: 1318706 | M12: 1383090 | N12: =Q80 -> 1974770.51 | O12: =F77 -> 6292391 | P12: =G77 -> 10742009 | Q12: =H77 -> 12430831
A13: Add: Weather Adjustment(2) | D13: -5272984 | E13: =SUM(F13:Q13) -> -5272984 | F13: =H61 -> -1704132 | G13: -605820 | H13: -1754035 | I13: -1884742 | J13: 654538 | K13: -427121 | L13: 0 | M13: 0 | N13: 0 | O13: =E61 -> -158578 | P13: =F61 -> 66481 | Q13: =G61 -> 540425
A14: Test Year Monthly Therms | D14: =SUM(D10:D13) -> 118641430 | E14: 118641430 | F14: 19880758 | G14: 18737627 | H14: 12345740 | I14: 9427301 | J14: 5554823 | K14: 2402374 | L14: 2287103 | M14: 2287617 | N14: 3079646.51 | O14: 8101725.51 | P14: 13914616 | Q14: 20622099
B16: Adjust to Annual Pro Forma | E16: =D14-E14 -> 0 | F16: 0 | G16: 0 | H16: 0 | I16: 0 | J16: 0 | K16: 0 | L16: 0 | M16: 0 | N16: =D12-N12 -> 0 | O16: =D11-O11 -> 0 | P16: 0 | Q16: 0
A18: Monthly Pro Forma Therms | E18: =SUM(F18:Q18) -> 118641430 | F18: =F14+F16 -> 19880758 | G18: 18737627 | H18: 12345740 | I18: 9427301 | J18: 5554823 | K18: 2402374 | L18: 2287103 | M18: 2287617 | N18: 3079646.51 | O18: 8101725.51 | P18: 13914616 | Q18: 20622099
A20: Customers / Billings
A21: Test Yr Customers/Billings(2) | D21: 1673784 | E21: =SUM(F21:Q21) -> 1696522 | F21: =H89 -> 141580 | G21: =I89 -> 141745 | H21: 141763 | I21: 141662 | J21: 141566 | K21: 141413 | L21: 141354 | M21: 141399 | N21: 141829 | O21: =E89 -> 140039 | P21: =F89 -> 140930 | Q21: =G89 -> 141242
A22: Test Year Average Use/Cust | E22: =E18/E21 -> 69.93214943 | F22: 140.4206668 | G22: 132.1925077 | H22: 87.08718072 | I22: 66.54784628 | J22: 39.23839764 | K22: 16.98835326 | L22: 16.17996661 | M22: 16.17845246 | N22: 21.71379979 | O22: 57.85335164 | P22: 98.73423686 | Q22: 146.0054304
E24: Total | F24: Schedule 101 | G24: Schedule 156 (14th revision)
A25: Sch 101 Base Rate/therm(3) | E25: =1.13793+0.04967+0.00005 -> 1.18765 | F25: =1.13793+0.00005 -> 1.13798 | G25: =E25-F25 -> 0.04967
A26: Times: 1 minus Revenue Related Items (4) | E26: 0.957059 | F26: 0.957059 | G26: 0.957059
A27: Revenue prior to gross up | E27: =E25*E26 -> 1.136651121 | F27: =F25*F26 -> 1.089114001 | G27: =G25*G26 -> 0.04753712053
A28: Less: Weighted Average Gas Cost/therm(5) | E28: -0.89449 | F28: =E28+G27 -> -0.8469528795 | G28: =E28-F28 -> -0.04753712053
A29: Margin Rate/therm | E29: =E27+E28 -> 0.2421611214 | F29: =F27+F28 -> 0.2421611214 | G29: =G27+G28 -> 0
A33: (1) From Hirschkorn workpapers in Docket No. UG-090135 BJH -1, BJH -11, and BJH - 18
A34: (2) From 12 ME September 2008 Monthly Data (below)
A35: (3) From Compliance Filing Schedule 101 per therm rate (with and without 11/1/2008 Schedule 156 gas cost adder)
A36: (4) From Andrews Compliance Revenue Requirement model, page 4, line 7
A37: (5) From Schedule 156 purchased gas cost per therm rate (14th revision sheet effective 11/1/2008)
A38: (6) From Hirschkorn workpapers in Docket No. UG-090135 BJH-12, BJH -17, BJH -19, and BJH - 20
A39: 12 MONTHS ENDED SEPTEMBER 2008 TEST YEAR BASE
A40: UG-090135 Weather Normalization and Unbilled Calculation
A42: 12 Months Ended September 2008 Monthly Data
B44: Revenue Run Therms | E44: 2007-10-01 | F44: 2007-11-01 | G44: 2007-12-01 | H44: 2008-01-01 | I44: 2008-02-01 | J44: 2008-03-01 | K44: 2008-04-01 | L44: 2008-05-01 | M44: 2008-06-01 | N44: 2008-07-01 | O44: 2008-08-01 | P44: 2008-09-01 | Q44: Total
B45: Total 101 | E45: 4484817 | F45: 9398517 | G45: 18392852 | H45: 20755627 | I45: 22514347 | J45: 14859076 | K45: 13629159 | L45: 8714627 | M45: 4232714 | N45: 2763613 | O45: 2223233 | P45: 2487966 | Q45: =SUM(E45:P45) -> 124456548
B47: Weather Normalization
E48: 2007-10-01 | F48: 2007-11-01 | G48: 2007-12-01 | H48: 2008-01-01 | I48: 2008-02-01 | J48: 2008-03-01 | K48: 2008-04-01 | L48: 2008-05-01 | M48: 2008-06-01 | N48: 2008-07-01 | O48: 2008-08-01 | P48: 2008-09-01 | Q48: Total
B49: Normal Degree Days (30 Year Average 1979 - 2008) | E49: 541 | F49: 899 | G49: 1160 | H49: 1136 | I49: 914 | J49: 770 | K49: 542 | L49: 323 | M49: 144 | N49: 36 | O49: 35 | P49: 189 | Q49: =SUM(E49:P49) -> 6689
B50: Actual Degree Days | E50: 553 | F50: 894 | G50: 1126 | H50: 1243 | I50: 952 | J50: 880 | K50: 683 | L50: 274 | M50: 176 | N50: 8 | O50: 52 | P50: 142 | Q50: =SUM(E50:P50) -> 6983
B51: Degree Day Adjustment (1,6) | E51: =E49-E50 -> -12 | F51: =F49-F50 -> 5 | G51: =G49-G50 -> 34 | H51: =H49-H50 -> -107 | I51: =I49-I50 -> -38 | J51: -110 | K51: -141 | L51: 49 | M51: -32 | N51: 28 | O51: -17 | P51: 47 | Q51: =SUM(E51:P51) -> -294
D52: Monthly
B53: Res 101 | D53: Use/DD/Cust(6) | E53: 0.0877 | F53: 0.0877 | G53: 0.1002 | H53: 0.1002 | I53: 0.1002 | J53: 0.1002 | K53: 0.0877 | L53: 0.0877 | M53: 0.0877 | N53: 0 | O53: 0 | P53: 0
B54: Com 101 | D54: Use/DD/Cust(6) | E54: 0.167 | F54: 0.167 | G54: 0.2467 | H54: 0.2467 | I54: 0.2467 | J54: 0.2467 | K54: 0.167 | L54: 0.167 | M54: 0.167 | N54: 0 | O54: 0 | P54: 0
B55: Ind 101 | D55: Use/DD/Cust(6) | E55: 0.2961 | F55: 0.2961 | G55: 0.4266 | H55: 0.4266 | I55: 0.4266 | J55: 0.4266 | K55: 0.2961 | L55: 0.2961 | M55: 0.2961 | N55: 0 | O55: 0 | P55: 0
B57: Sch. 101
B58: Res 101 | E58: =ROUND(E$51*E53*E85,0) -> -135098 | F58: 56662 | G58: 440922 | H58: -1391380 | I58: -494763 | J58: -1432309 | K58: -1605822 | L58: 557674 | M58: -363653 | N58: 0 | O58: 0 | P58: 0 | Q58: =SUM(E58:P58) -> -4367767
B59: Com 101 | E59: -23150 | F59: 9683 | G59: 98154 | H59: -308553 | I59: -109598 | J59: -317503 | K59: -275288 | L59: 95602 | M59: -62653 | N59: 0 | O59: 0 | P59: 0 | Q59: =SUM(E59:P59) -> -893306
B60: Ind 101 | E60: -330 | F60: 136 | G60: 1349 | H60: -4199 | I60: -1459 | J60: -4223 | K60: -3632 | L60: 1262 | M60: -815 | N60: 0 | O60: 0 | P60: 0 | Q60: =SUM(E60:P60) -> -11911
B61: Total 101 | E61: =SUM(E58:E60) -> -158578 | F61: =SUM(F58:F60) -> 66481 | G61: =SUM(G58:G60) -> 540425 | H61: =SUM(H58:H60) -> -1704132 | I61: -605820 | J61: -1754035 | K61: -1884742 | L61: 654538 | M61: -427121 | N61: 0 | O61: 0 | P61: 0 | Q61: -5272984
B64: Monthly Unbilled Calculation
E65: 2007-09-01 | F65: 2007-10-01 | G65: 2007-11-01 | H65: 2007-12-01 | I65: 2008-01-01 | J65: 2008-02-01 | K65: 2008-03-01 | L65: 2008-04-01 | M65: 2008-05-01 | N65: 2008-06-01 | O65: 2008-07-01 | P65: 2008-08-01 | Q65: 2008-09-01
B66: Unbilled DDH (6) | E66: 161.9 | F66: 377.3 | G66: 642.8 | H66: 702.2 | I66: 756.7 | J66: 554.3 | K66: 549 | L66: 424.2 | M66: 140.1 | N66: 71.2 | O66: 4.7 | P66: 45.9 | Q66: 101.5
B67: Unbilled Factor (6) | E67: 0.6095 | F67: 0.6329 | G67: 0.6619 | H67: 0.6098 | I67: 0.5791 | J67: 0.5993 | K67: 0.6129 | L67: 0.6429 | M67: 0.6359 | N67: 0.6333 | O67: 0.6329 | P67: 0.6636 | Q67: 0.6286
C68: 08 Baseld(6) | D68: Monthly
B69: Res 101 | C69: 15 | D69: Use/DD/Cust(6) | E69: =(E53+P53)/2 -> 0.04385 | F69: =(E53+F53)/2 -> 0.0877 | G69: =(F53+G53)/2 -> 0.09395 | H69: 0.1002 | I69: 0.1002 | J69: 0.1002 | K69: 0.09395 | L69: 0.0877 | M69: 0.0877 | N69: 0.04385 | O69: 0 | P69: 0 | Q69: =(P53+E53)/2 -> 0.04385
B70: Com 101 | C70: 12 | D70: Use/DD/Cust(6) | E70: =(E54+P54)/2 -> 0.0835 | F70: =(E54+F54)/2 -> 0.167 | G70: 0.20685 | H70: 0.2467 | I70: 0.2467 | J70: 0.2467 | K70: 0.20685 | L70: 0.167 | M70: 0.167 | N70: 0.0835 | O70: 0 | P70: 0 | Q70: =(P54+E54)/2 -> 0.0835
B71: Ind 101 | C71: 0 | D71: Use/DD/Cust(6) | E71: =(E55+P55)/2 -> 0.14805 | F71: 0.2961 | G71: 0.36135 | H71: 0.4266 | I71: 0.4266 | J71: 0.4266 | K71: 0.36135 | L71: 0.2961 | M71: 0.2961 | N71: 0.14805 | O71: 0 | P71: 0 | Q71: =(P55+E55)/2 -> 0.14805
B73: Sch. 101
B74: Res 101 | E74: =ROUND((E$66*E69)*D85,0)+ROUND(($C69*E$67)*D85,0) -> 2077295 | F74: 5466385 | G74: 9086553 | H74: 10290171 | I74: 10967089 | J74: 8385140 | K74: 7897328 | L74: 6083448 | M74: 2832331 | N74: 1635509 | O74: 1229968 | P74: 1289929 | Q74: 1804731
B75: Com 101 | E75: 240638 | F75: 815616 | G75: 1634087 | H75: 2112801 | I75: 2263307 | J75: 1682772 | K75: 1414711 | L75: 918401 | M75: 362495 | N75: 158800 | O75: 88738 | P75: 93161 | Q75: 187288
B76: Ind 101 | E76: 2277 | F76: 10390 | G76: 21369 | H76: 27859 | I76: 29698 | J76: 21282 | K76: 17854 | L76: 10928 | M76: 3609 | N76: 907 | O76: 0 | P76: 0 | Q76: 1292
B77: Total | E77: =SUM(E74:E76) -> 2320210 | F77: =SUM(F74:F76) -> 6292391 | G77: =SUM(G74:G76) -> 10742009 | H77: =SUM(H74:H76) -> 12430831 | I77: =SUM(I74:I76) -> 13260094 | J77: 10089194 | K77: 9329893 | L77: 7012777 | M77: 3198435 | N77: 1795216 | O77: 1318706 | P77: 1383090 | Q77: 1993311
B79: Pro Rata Adjustment to per Books Unbilled Total | E79: =E80-E77 -> 196694.49 | Q79: =Q80-Q77 -> -18540.49
B80: Pro Rata Adjusted Unbilled Total (1) | E80: =2516904+0.49 -> 2516904.49 | Q80: =1974771-0.49 -> 1974770.51
B83: Revenue Run Customers (Meters Billed)
C84: Class | D84: 2007-09-01 | E84: 2007-10-01 | F84: 2007-11-01 | G84: 2007-12-01 | H84: 2008-01-01 | I84: 2008-02-01 | J84: 2008-03-01 | K84: 2008-04-01 | L84: 2008-05-01 | M84: 2008-06-01 | N84: 2008-07-01 | O84: 2008-08-01 | P84: 2008-09-01 | Q84: 12 ME Sept
B85: Residential 101 | C85: 01 | D85: 127898 | E85: 128371 | F85: 129218 | G85: 129424 | H85: 129776 | I85: 129941 | J85: 129950 | K85: 129861 | L85: 129773 | M85: 129580 | N85: 129559 | O85: 129589 | P85: 130026 | Q85: =SUM(E85:P85) -> 1555068
B86: Commercial 101 | C86: 21 | D86: 11551 | E86: 11552 | F86: 11597 | G86: 11702 | H86: 11689 | I86: 11691 | J86: 11700 | K86: 11691 | L86: 11683 | M86: 11724 | N86: 11684 | O86: 11699 | P86: 11692 | Q86: =SUM(E86:P86) -> 140104
B87: Industrial 101 | C87: 31 | D87: 95 | E87: 93 | F87: 92 | G87: 93 | H87: 92 | I87: 90 | J87: 90 | K87: 87 | L87: 87 | M87: 86 | N87: 87 | O87: 87 | P87: 86 | Q87: =SUM(E87:P87) -> 1070
B88: Interdepartmental 101 | C88: 80 | D88: 24 | E88: 23 | F88: 23 | G88: 23 | H88: 23 | I88: 23 | J88: 23 | K88: 23 | L88: 23 | M88: 23 | N88: 24 | O88: 24 | P88: 25 | Q88: =SUM(E88:P88) -> 280
B89: Total | D89: =SUM(D85:D88) -> 139568 | E89: =SUM(E85:E88) -> 140039 | F89: =SUM(F85:F88) -> 140930 | G89: =SUM(G85:G88) -> 141242 | H89: =SUM(H85:H88) -> 141580 | I89: 141745 | J89: 141763 | K89: 141662 | L89: 141566 | M89: 141413 | N89: 141354 | O89: 141399 | P89: 141829 | Q89: 1696522

Sheet 2010
A1: AVISTA UTILITIES
A2: Washington - Gas
A3: Approved Decoupling Mechanism per Order No. 10 Docket No. UG-090135
A4: 2009 compared to 2007 Test Year and 2010 compared to 12 ME Sept 2008 Test Year
A5: Adjusted for Actual New Customer Usage and Schedule Shifting
A6: Period July 2009 - June 2010
D9: 2009 | E9: 2009 | F9: 2009 | G9: 2009 | H9: 2009 | I9: 2009 | J9: 2010 | K9: 2010 | L9: 2010 | M9: 2010 | N9: 2010 | O9: 2010 | P9: Period to Date
D10: July | E10: August | F10: September | G10: October | H10: November | I10: December | J10: January | K10: February | L10: March | M10: April | N10: May | O10: June | P10: Total
A11: 12 Months Ended June 2010 Actual
A12: Schedule 101
A13: Schedule 101 Billed Therms | D13: 2373945 | E13: 2111270 | F13: 2274191 | G13: 4129665 | H13: 9700573 | I13: 15883296 | J13: 20975430 | K13: 15686649 | L13: 13792342 | M13: 12118647 | N13: 8026903 | O13: 5208692 | P13: =SUM(D13:O13) -> 112281603
A14: Deduct New Customer Usage(1) | D14: -68969 | E14: -62393 | F14: -67659 | G14: -102155 | H14: -244802 | I14: -382445 | J14: -578999 | K14: -416628 | L14: -354157 | M14: -324373 | N14: -200578 | O14: -120766 | P14: -2923924
A15: Schedule Shifting Adjustment (2) | D15: =35413-7959 -> 27454 | E15: =25840-5754 -> 20086 | F15: =23251-5711 -> 17540 | G15: =45984-10730 -> 35254 | H15: =97086-30623 -> 66463 | I15: 109275 | J15: 138991 | K15: 139341 | L15: 75413 | M15: 66617 | N15: 44721 | O15: 17289 | P15: 758444
A16: Deduct Prior Month Unbilled Therms | D16: =-J76 -> -1646524 | E16: -1261285 | F16: -1348002 | G16: -1913331 | H16: -7622740 | I16: -11080393 | J16: =-G120 -> -15985245 | K16: =-H120 -> -12235405 | L16: =-I120 -> -10818958 | M16: =-J120 -> -9303529 | N16: -6426971 | O16: -5316462 | P16: =SUM(D16:O16) -> -84958845
A17: Add Current Month Unbilled Therms | D17: =K76 -> 1261285 | E17: 1348002 | F17: 1913331 | G17: 7622740 | H17: 11080393 | I17: 15977636 | J17: =H120 -> 12235405 | K17: =I120 -> 10818958 | L17: =J120 -> 9303529 | M17: =K120 -> 6426971 | N17: 5316462 | O17: 2290886 | P17: 85595598
A18: Add Weather Adjustment | D18: =J60 -> 0 | E18: 0 | F18: 0 | G18: -1685053 | H18: 813816 | I18: -1286802 | J18: =G104 -> 3456046 | K18: =H104 -> 2598652 | L18: =I104 -> 589994 | M18: =J104 -> 53468 | N18: -1295718 | O18: -613987 | P18: 2630416
A19: Weather Adj Calendar Therms | D19: =SUM(D13:D18) -> 1947191 | E19: 2155680 | F19: 2789401 | G19: 8087120 | H19: 13793703 | I19: 19220567 | J19: 20241628 | K19: 16591567 | L19: 12588163 | M19: 9037801 | N19: 5464819 | O19: 1465652 | P19: 113383292
A21: Weather Adj Calendar Therms | D21: =D19 -> 1947191 | E21: 2155680 | F21: 2789401 | G21: 8087120 | H21: 13793703 | I21: 19220567 | J21: 20241628 | K21: 16591567 | L21: 12588163 | M21: 9037801 | N21: 5464819 | O21: 1465652 | P21: =SUM(D21:O21) -> 113383292
A22: Less Test Year Therms | D22: 1958680 | E22: 2065128 | F22: 3366957 | G22: 8401998 | H22: 13830005 | I22: 20708858 | J22: 19880758 | K22: 18737627 | L22: 12345740 | M22: 9427301 | N22: 5554823 | O22: 2402374 | P22: =SUM(D22:O22) -> 118680249
A23: Therm Difference | D23: =D21-D22 -> -11489 | E23: 90552 | F23: -577556 | G23: -314878 | H23: -36302 | I23: -1488291 | J23: =J21-J22 -> 360870 | K23: =K21-K22 -> -2146060 | L23: =L21-L22 -> 242423 | M23: =M21-M22 -> -389500 | N23: -90004 | O23: -936722 | P23: =SUM(D23:O23) -> -5296957
A24: Times Current Margin Rate per Therm | D24: 0.24201 | E24: 0.24201 | F24: 0.24201 | G24: 0.24201 | H24: 0.24201 | I24: 0.24201 | J24: 0.24216 | K24: 0.24216 | L24: 0.24216 | M24: 0.24216 | N24: 0.24216 | O24: 0.24216
A25: Revenue Excess (Shortfall) | D25: =D23*D24 -> -2780.45289 | E25: 21914.48952 | F25: -139774.3276 | G25: -76203.62478 | H25: -8785.44702 | I25: -360181.3049 | J25: 87388.2792 | K25: -519689.8896 | L25: 58705.15368 | M25: -94321.32 | N25: -21795.36864 | O25: -226836.5995 | P25: =SUM(D25:O25) -> -1282360.413
B26: 45% Limitation | D26: 0.45 | E26: 0.45 | F26: 0.45 | G26: 0.45 | H26: 0.45 | I26: 0.45 | J26: 0.45 | K26: 0.45 | L26: 0.45 | M26: 0.45 | N26: 0.45 | O26: 0.45
B27: 407328 or (407428) | D27: =ROUND(D25*D26,0) -> -1251 | E27: =ROUND(E25*E26,0) -> 9862 | F27: -62898 | G27: -34292 | H27: -3953 | I27: -162082 | J27: 39325 | K27: -233860 | L27: 26417 | M27: -42445 | N27: -9808 | O27: -102076 | P27: =SUM(D27:O27) -> -577061
B29: 90% Limitation | D29: 0.9 | E29: 0.9 | F29: 0.9 | G29: 0.9 | H29: 0.9
A30: Journalized through November | D30: =ROUND(D25*D29,0) -> -2502 | E30: =ROUND(E25*E29,0) -> 19723 | F30: -125797 | G30: -68583 | H30: -7907
B31: 407328 or (407428)
A32: Cumulative Adjustment for Approved percentage Limitation | G32: July - November Approved | I32: =SUM($D27:$H27) -> -92532 | J32: (4)
G33: July - November Interim | I33: =SUM($D30:$H30) -> -185066 | J33: (4)
A34: July Amount Journalized (3) | D34: -8482
A35: Adjustment for July Schedule Shifting (3) | E35: =D30-D34 -> 5980 | G35: July - November Adjustment | I35: =I32-I33 -> 92534 | J35: (4)
E36: =E30+E35 -> 25703
A40: (1) Per monthly reports - current month usage for new services opened since that month of the test year.
A41: (2) The schedule shifting adjustment adds back test year usage of customers that have shifted away from Schedule 101 and deducts the current month usage of customers that were on a different schedule during the test year and have shifted to Schedule 101.
A42: (3) The schedule shifting query was under construction at the time of the July close, therefore a true-up to reflect the corrected July entry is recorded with the August Journal.
A43: (4) Per Order No. 10 of Docket No. UE-090134, UG-090135 & UG-060518 (consolidated) the approved margin deferral percentage is 45% to be applied to deferrals beginning July 1, 2009. The interim order allowed journalization of the proposed mechanism, this adjustment trues up the mechanism entries for July through November to the approved amount.
A45: 2007 Test Year Factors, 2009 Actual Weather and Cycle Days
A46: Weather Normalization
D47: 2009-01-01 | E47: 2009-02-01 | F47: 2009-03-01 | G47: 2009-04-01 | H47: 2009-05-01 | I47: 2009-06-01 | J47: 2009-07-01 | K47: 2009-08-01 | L47: 2009-09-01 | M47: 2009-10-01 | N47: 2009-11-01 | O47: 2009-12-01 | P47: Total
A48: Normal DDH | D48: 1105 | E48: 912 | F48: 768 | G48: 536 | H48: 324 | I48: 139 | J48: 37 | K48: 34 | L48: 189 | M48: 543 | N48: 894 | O48: 1171 | P48: =SUM(D48:O48) -> 6652
A49: Actual DDH | D49: 1204 | E49: 957 | F49: 936 | G49: 586 | H49: 303 | I49: 93 | J49: 17 | K49: 23 | L49: 103 | M49: 668 | N49: 834 | O49: 1252 | P49: =SUM(D49:O49) -> 6976
A50: Degree Day Adjustment | D50: =D48-D49 -> -99 | E50: -45 | F50: -168 | G50: -50 | H50: 21 | I50: 46 | J50: 20 | K50: 11 | L50: 86 | M50: -125 | N50: 60 | O50: -81 | P50: -324
C51: Monthly
A52: Res 101 | C52: Use/DD/Cust(6) | D52: 0.1005 | E52: 0.1005 | F52: 0.1005 | G52: 0.0896 | H52: 0.0896 | I52: 0.0896 | J52: 0 | K52: 0 | L52: 0 | M52: 0.0896 | N52: 0.0896 | O52: 0.1005
A53: Com 101 | C53: Use/DD/Cust(6) | D53: 0.2427 | E53: 0.2427 | F53: 0.2427 | G53: 0.1688 | H53: 0.1688 | I53: 0.1688 | J53: 0 | K53: 0 | L53: 0 | M53: 0.1688 | N53: 0.1688 | O53: 0.2427
A54: Ind 101 | C54: Use/DD/Cust(6) | D54: 0.4222 | E54: 0.4222 | F54: 0.4222 | G54: 0.3055 | H54: 0.3055 | I54: 0.3055 | J54: 0 | K54: 0 | L54: 0 | M54: 0.3055 | N54: 0.3055 | O54: 0.4222
A56: Sch. 101
A57: Res 101 | D57: =ROUND(D$50*D52*D81,0) -> -1266432 | E57: -576804 | F57: -2152541 | G57: -571325 | H57: 239744 | I57: 524329 | J57: 0 | K57: 0 | L57: 0 | M57: -1437755 | N57: 694676 | O57: -1053576 | P57: =SUM(D57:O57) -> -5599684
A58: Com 101 | D58: =ROUND(D$50*D53*D82,0) -> -274151 | E58: -126121 | F58: -466858 | G58: -96798 | H58: 40694 | I58: 89326 | J58: 0 | K58: 0 | L58: 0 | M58: -243747 | N58: 117454 | O58: -230046 | P58: =SUM(D58:O58) -> -1190247
A59: Ind 101 | D59: =ROUND(D$50*D54*D83,0) -> -3595 | E59: -1862 | F59: -6526 | G59: -1405 | H59: 597 | I59: 1335 | J59: 0 | K59: 0 | L59: 0 | M59: -3551 | N59: 1686 | O59: -3180 | P59: =SUM(D59:O59) -> -16501
A60: Total 101 | D60: =SUM(D57:D59) -> -1544178 | E60: -704787 | F60: -2625925 | G60: -669528 | H60: 281035 | I60: 614990 | J60: 0 | K60: 0 | L60: 0 | M60: -1685053 | N60: 813816 | O60: -1286802 | P60: -6806432
A63: Monthly Unbilled Calculation
D64: 2008-12-01 | E64: 2009-01-01 | F64: 2009-02-01 | G64: 2009-03-01 | H64: 2009-04-01 | I64: 2009-05-01 | J64: 2009-06-01 | K64: 2009-07-01 | L64: 2009-08-01 | M64: 2009-09-01 | N64: 2009-10-01 | O64: 2009-11-01 | P64: 2009-12-01
A65: Unbilled DDH (6) | D65: 952.4 | E65: 740.5 | F65: 571.1 | G65: 535.7 | H65: 355.5 | I65: 141.4 | J65: 56.4 | K65: 7 | L65: 13 | M65: 78.9 | N65: 460.5 | O65: =609.3*1.059 -> 645.2487 | P65: =ROUND(808.7*1.1216,1) -> 907
A66: Unbilled Factor (6) | D66: 0.6863 | E66: 0.5975 | F66: 0.6062 | G66: 0.6011 | H66: 0.6251 | I66: 0.6223 | J66: 0.6204 | K66: 0.6162 | L66: 0.6575 | M66: 0.6724 | N66: 0.6855 | O66: =72.46%*1.059 -> 0.7673514 | P66: =ROUND(67.18%*1.1216,4) -> 0.7535
B67: 07 Baseld(1) | C67: Monthly
A68: Res 101 | B68: 15 | C68: Use/DD/Cust(6) | D68: 0.1005 | E68: 0.1005 | F68: 0.1005 | G68: =(F68+H68)/2 -> 0.09505 | H68: 0.0896 | I68: 0.0896 | J68: =(I68+K68)/2 -> 0.0448 | K68: 0 | L68: 0 | M68: =(L68+N68)/2 -> 0.0448 | N68: 0.0896 | O68: =(N68+P68)/2 -> 0.09505 | P68: 0.1005
A69: Com 101 | B69: 12 | C69: Use/DD/Cust(6) | D69: 0.2427 | E69: 0.2427 | F69: 0.2427 | G69: =(F69+H69)/2 -> 0.20575 | H69: 0.1688 | I69: 0.1688 | J69: =(I69+K69)/2 -> 0.0844 | K69: 0 | L69: 0 | M69: =(L69+N69)/2 -> 0.0844 | N69: 0.1688 | O69: =(N69+P69)/2 -> 0.20575 | P69: 0.2427
A70: Ind 101 | B70: 0 | C70: Use/DD/Cust(6) | D70: 0.4222 | E70: 0.4222 | F70: 0.4222 | G70: =(F70+H70)/2 -> 0.36385 | H70: 0.3055 | I70: 0.3055 | J70: =(I70+K70)/2 -> 0.15275 | K70: 0 | L70: 0 | M70: =(L70+N70)/2 -> 0.15275 | N70: 0.3055 | O70: =(N70+P70)/2 -> 0.36385 | P70: 0.4222
A72: Sch. 101
A73: Res 101 | D73: =ROUND((D$65*D68)*C81,0)+ROUND(($B68*D$66)*C81,0) -> 13471627 | E73: 10613457 | F73: 8480016 | G73: 7641086 | H73: 5257890 | I73: 2803632 | J73: 1505300 | K73: 1176227 | L73: 1257291 | M73: 1742063 | N73: 6616665 | O73: 9412389 | P73: =ROUND((P$65*P68)*O81,0)+ROUND(($B68*P$66)*O81,0) -> 13260266
A74: Com 101 | D74: =ROUND((D$65*D69)*C82,0)+ROUND(($B69*D$66)*C82,0) -> 2746681 | E74: 2132408 | F74: 1684627 | G74: 1344613 | H74: 774267 | I74: 359736 | J74: 140406 | K74: 85058 | L74: 90711 | M74: 170123 | N74: 992992 | O74: 1646405 | P74: 2681757
A75: Ind 101 | D75: =ROUND((D$65*D70)*C83,0)+ROUND(($B70*D$66)*C83,0) -> 37396 | E75: 26887 | F75: 23630 | G75: 17932 | H75: 9992 | I75: 4017 | J75: 818 | K75: 0 | L75: 0 | M75: 1145 | N75: 13083 | O75: 21599 | P75: 35613
A76: Total | D76: =SUM(D73:D75) -> 16255704 | E76: 12772752 | F76: 10188273 | G76: 9003631 | H76: 6042149 | I76: 3167385 | J76: 1646524 | K76: 1261285 | L76: 1348002 | M76: 1913331 | N76: 7622740 | O76: 11080393 | P76: 15977636
A78: Note (1) The June 2010 decoupling surcharge amortization journal entry included a correction for prior period decoupling surcharge amortization entry errors that occurred in April and July of 2009 totalling $31,715.78 plus an accumulated interest correction of $2,421.45 affecting the 182328 balance sheet account. The surcharge amortization errors were identified in the process of preparing a data response in WUTC Docket No. UG-100468.
A79: Revenue Run Customers (Meters Billed)
B80: Class | C80: 2006-12-01 | D80: 2007-01-01 | E80: 2007-02-01 | F80: 2007-03-01 | G80: 2007-04-01 | H80: 2007-05-01 | I80: 2007-06-01 | J80: 2007-07-01 | K80: 2007-08-01 | L80: 2007-09-01 | M80: 2007-10-01 | N80: 2007-11-01 | O80: 2007-12-01 | P80: 2007 Total
A81: Residential 101 | B81: 01 | C81: 127078 | D81: 127286 | E81: 127541 | F81: 127490 | G81: 127528 | H81: 127415 | I81: 127215 | J81: 127256 | K81: 127482 | L81: 127898 | M81: 128371 | N81: 129218 | O81: 129424 | P81: =SUM(D81:O81) -> 1534124
A82: Commercial 101 | B82: 21 | C82: 11474 | D82: 11410 | E82: 11548 | F82: 11450 | G82: 11469 | H82: 11480 | I82: 11504 | J82: 11503 | K82: 11497 | L82: 11551 | M82: 11552 | N82: 11597 | O82: 11702 | P82: =SUM(D82:O82) -> 138263
A83: Industrial 101 | B83: 31 | C83: 93 | D83: 86 | E83: 98 | F83: 92 | G83: 92 | H83: 93 | I83: 95 | J83: 94 | K83: 93 | L83: 95 | M83: 93 | N83: 92 | O83: 93 | P83: =SUM(D83:O83) -> 1116
A84: Interdepartmental 101 | B84: 80 | C84: 22 | D84: 22 | E84: 23 | F84: 23 | G84: 24 | H84: 24 | I84: 24 | J84: 24 | K84: 24 | L84: 24 | M84: 23 | N84: 23 | O84: 23 | P84: =SUM(D84:O84) -> 281
A85: Total | C85: =SUM(C81:C84) -> 138667 | D85: 138804 | E85: 139210 | F85: 139055 | G85: 139113 | H85: 139012 | I85: 138838 | J85: 138877 | K85: 139096 | L85: 139568 | M85: 140039 | N85: 140930 | O85: 141242 | P85: 1673784
A89: 12 ME Sept 2008 Test Year Factors, 2010 Actual Weather and Cycle Days
A90: Weather Normalization
D91: 2010-10-01 | E91: 2010-11-01 | F91: 2010-12-01 | G91: 2010-01-01 | H91: 2010-02-01 | I91: 2010-03-01 | J91: 2010-04-01 | K91: 2010-05-01 | L91: 2010-06-01 | M91: 2010-07-01 | N91: 2010-08-01 | O91: 2010-09-01 | P91: Total
A92: Normal Degree Days (30 Year Average 1979 - 2008) | D92: 541 | E92: 899 | F92: 1160 | G92: 1136 | H92: 914 | I92: 770 | J92: 542 | K92: 323 | L92: 144 | M92: 36 | N92: 35 | O92: 189 | P92: =SUM(D92:O92) -> 6689
A93: Actual Degree Days | D93: =D92 -> 541 | E93: =E92 -> 899 | F93: 1160 | G93: 919 | H93: 751 | I93: 733 | J93: 538 | K93: 420 | L93: 190 | M93: 36 | N93: 35 | O93: 189 | P93: =SUM(D93:O93) -> 6411
A94: Degree Day Adjustment (1,6) | D94: =D92-D93 -> 0 | E94: 0 | F94: 0 | G94: 217 | H94: 163 | I94: 37 | J94: 4 | K94: -97 | L94: -46 | M94: 0 | N94: 0 | O94: 0 | P94: =SUM(G94:O94) -> 278
C95: Monthly
A96: Res 101 | C96: Use/DD/Cust(6) | D96: 0.0877 | E96: 0.0877 | F96: 0.1002 | G96: 0.1002 | H96: 0.1002 | I96: 0.1002 | J96: 0.0877 | K96: 0.0877 | L96: 0.0877 | M96: 0 | N96: 0 | O96: 0
A97: Com 101 | C97: Use/DD/Cust(6) | D97: 0.167 | E97: 0.167 | F97: 0.2467 | G97: 0.2467 | H97: 0.2467 | I97: 0.2467 | J97: 0.167 | K97: 0.167 | L97: 0.167 | M97: 0 | N97: 0 | O97: 0
A98: Ind 101 | C98: Use/DD/Cust(6) | D98: 0.2961 | E98: 0.2961 | F98: 0.4266 | G98: 0.4266 | H98: 0.4266 | I98: 0.4266 | J98: 0.2961 | K98: 0.2961 | L98: 0.2961 | M98: 0 | N98: 0 | O98: 0
A100: Sch. 101
A101: Res 101 | D101: =ROUND(D$94*D96*D125,0) -> 0 | E101: 0 | F101: 0 | G101: 2821771 | H101: 2122274 | I101: 481777 | J101: =ROUND(J$94*J96*J125,0) -> 45555 | K101: -1103966 | L101: -522752 | M101: 0 | N101: 0 | O101: 0 | P101: =SUM(D101:O101) -> 3844659
A102: Com 101 | D102: =ROUND(D$94*D97*D126,0) -> 0 | E102: 0 | F102: 0 | G102: 625758 | H102: 470120 | I102: 106796 | J102: 7810 | K102: -189253 | L102: -90064 | M102: 0 | N102: 0 | O102: 0 | P102: =SUM(D102:O102) -> 931167
A103: Ind 101 | D103: =ROUND(D$94*D98*D127,0) -> 0 | E103: 0 | F103: 0 | G103: 8517 | H103: 6258 | I103: 1421 | J103: 103 | K103: -2499 | L103: -1171 | M103: 0 | N103: 0 | O103: 0 | P103: =SUM(D103:O103) -> 12629
A104: Total 101 | D104: =SUM(D101:D103) -> 0 | E104: 0 | F104: 0 | G104: 3456046 | H104: 2598652 | I104: 589994 | J104: 53468 | K104: -1295718 | L104: -613987 | M104: 0 | N104: 0 | O104: 0 | P104: 4788455
A107: Monthly Unbilled Calculation
D108: 2009-09-01 | E108: 2009-10-01 | F108: 2009-11-01 | G108: 2009-12-01 | H108: 2010-01-01 | I108: 2010-02-01 | J108: 2010-03-01 | K108: 2010-04-01 | L108: 2010-05-01 | M108: 2010-06-01 | N108: 2010-07-01 | O108: 2010-08-01 | P108: 2010-09-01
A109: Unbilled DDH (current period cycle day worksheet) | D109: 78.9 | E109: 460.5 | F109: =609.3*1.059 -> 645.2487 | G109: =ROUND(808.7*1.1216,1) -> 907 | H109: =ROUND(566.8*1.1828,1) -> 670.4 | I109: =ROUND(479*1.2048,1) -> 577.1 | J109: =ROUND(454.7*1.1646,1) -> 529.5 | K109: =ROUND(321.7*1.1323,1) -> 364.3 | L109: =ROUND(256.2*1.1089,1) -> 284.1 | M109: =ROUND(106.6*1.0955,1) -> 116.8
A110: Unbilled Factor (current period cycle day worksheet) | D110: 0.6724 | E110: 0.6855 | F110: =72.46%*1.059 -> 0.7673514 | G110: =ROUND(67.18%*1.1216,4) -> 0.7535 | H110: =ROUND(63.13%*1.1828,4) -> 0.7467 | I110: =ROUND(64.29%*1.2048,4) -> 0.7746 | J110: =ROUND(63.29%*1.1646,4) -> 0.7371 | K110: =ROUND(65.87%*1.1323,4) -> 0.7458 | L110: =ROUND(65.75%*1.1089,4) -> 0.7291 | M110: =ROUND(66.19%*1.0955,4) -> 0.7251 | N110: 0.6528 | O110: 0.6897 | P110: 0.7063
B111: 08 Baseld(6) | C111: Monthly
A112: Res 101 | B112: 15 | C112: Use/DD/Cust(6) | D112: =(D96+O96)/2 -> 0.04385 | E112: =(D96+E96)/2 -> 0.0877 | F112: 0.09395 | G112: 0.1002 | H112: 0.1002 | I112: 0.1002 | J112: 0.09395 | K112: 0.0877 | L112: 0.0877 | M112: 0.04385 | N112: 0 | O112: 0 | P112: =(O96+D96)/2 -> 0.04385
A113: Com 101 | B113: 12 | C113: Use/DD/Cust(6) | D113: =(D97+O97)/2 -> 0.0835 | E113: 0.167 | F113: 0.20685 | G113: 0.2467 | H113: 0.2467 | I113: 0.2467 | J113: 0.20685 | K113: 0.167 | L113: 0.167 | M113: 0.0835 | N113: 0 | O113: 0 | P113: =(O97+D97)/2 -> 0.0835
A114: Ind 101 | B114: 0 | C114: Use/DD/Cust(6) | D114: =(D98+O98)/2 -> 0.14805 | E114: 0.2961 | F114: 0.36135 | G114: 0.4266 | H114: 0.4266 | I114: 0.4266 | J114: 0.36135 | K114: 0.2961 | L114: 0.2961 | M114: 0.14805 | N114: 0 | O114: 0 | P114: =(O98+D98)/2 -> 0.14805
A116: Sch. 101
A117: Res 101 | D117: =ROUND((D$109*D112)*C125,0)+ROUND(($B112*D$110)*C125,0) -> 1732476 | E117: 6504347 | F117: 9320673 | G117: 13225049 | H117: 10171139 | I117: 9023677 | J117: 7901353 | K117: 5601698 | L117: 4652630 | M117: 2073044 | N117: 1268642 | O117: 1340663 | P117: 1377560
A118: Com 101 | D118: =ROUND((D$109*D113)*C126,0)+ROUND(($B113*D$110)*C126,0) -> 169303 | E118: 983416 | F118: 1654636 | G118: 2724212 | H118: 2037955 | I118: 1773124 | J118: 1384956 | K118: 815888 | L118: 656513 | M118: 216355 | N118: 91528 | O118: 96826 | P118: 99097
A119: Ind 101 | D119: =ROUND((D$109*D114)*C127,0)+ROUND(($B114*D$110)*C127,0) -> 1110 | E119: 12681 | F119: 21451 | G119: 35984 | H119: 26311 | I119: 22157 | J119: 17220 | K119: 9385 | L119: 7319 | M119: 1487 | N119: 0 | O119: 0 | P119: 0
A120: Total | D120: =SUM(D117:D119) -> 1902889 | E120: 7500444 | F120: 10996760 | G120: 15985245 | H120: =SUM(H117:H119) -> 12235405 | I120: 10818958 | J120: =SUM(J117:J119) -> 9303529 | K120: 6426971 | L120: 5316462 | M120: 2290886 | N120: 1360170 | O120: 1437489 | P120: 1476657
A123: Revenue Run Customers (Meters Billed)
B124: Class | C124: 2007-09-01 | D124: 2007-10-01 | E124: 2007-11-01 | F124: 2007-12-01 | G124: 2008-01-01 | H124: 2008-02-01 | I124: 2008-03-01 | J124: 2008-04-01 | K124: 2008-05-01 | L124: 2008-06-01 | M124: 2008-07-01 | N124: 2008-08-01 | O124: 2008-09-01 | P124: 12 ME Sept
A125: Residential 101 | B125: 01 | C125: 127898 | D125: 128371 | E125: 129218 | F125: 129424 | G125: 129776 | H125: 129941 | I125: 129950 | J125: 129861 | K125: 129773 | L125: 129580 | M125: 129559 | N125: 129589 | O125: 130026 | P125: =SUM(D125:O125) -> 1555068
A126: Commercial 101 | B126: 21 | C126: 11551 | D126: 11552 | E126: 11597 | F126: 11702 | G126: 11689 | H126: 11691 | I126: 11700 | J126: 11691 | K126: 11683 | L126: 11724 | M126: 11684 | N126: 11699 | O126: 11692 | P126: =SUM(D126:O126) -> 140104
A127: Industrial 101 | B127: 31 | C127: 95 | D127: 93 | E127: 92 | F127: 93 | G127: 92 | H127: 90 | I127: 90 | J127: 87 | K127: 87 | L127: 86 | M127: 87 | N127: 87 | O127: 86 | P127: =SUM(D127:O127) -> 1070
A128: Interdepartmental 101 | B128: 80 | C128: 24 | D128: 23 | E128: 23 | F128: 23 | G128: 23 | H128: 23 | I128: 23 | J128: 23 | K128: 23 | L128: 23 | M128: 24 | N128: 24 | O128: 25 | P128: =SUM(D128:O128) -> 280
A129: Total | C129: =SUM(C125:C128) -> 139568 | D129: 140039 | E129: 140930 | F129: 141242 | G129: 141580 | H129: 141745 | I129: 141763 | J129: 141662 | K129: 141566 | L129: 141413 | M129: 141354 | N129: 141399 | O129: 141829 | P129: 1696522

Sheet GL Accounts
A1: Balance Sheet Accounts
A3: GL Account Balance Accounting Period : '201004, 201005, 201006'
A5: Ferc Acct:186328 | B5: Ferc Acct Desc:REG ASSET-DECOUPLING DEFERRED | C5: Service:GD | D5: Jurisdiction:WA
A7: Accounting Period | B7: Beginning Balance | C7: Monthly Activity | D7: Ending Balance
A8: 201004 | B8: 422732 | C8: 42445 | D8: 465177
A9: 201005 | B9: 465177 | C9: 9808 | D9: 474985
A10: 201006 | B10: 474985 | C10: 102076 | D10: 577061
C11: Sum: 154,329.00
A13: GL Account Balance Accounting Period : '201004, 201005, 201006'
A15: Ferc Acct:182328 | B15: Ferc Acct Desc:REG ASSET- DECOUPLING SURCHARG | C15: Service:GD | D15: Jurisdiction:WA
A17: Accounting Period | B17: Beginning Balance | C17: Monthly Activity | D17: Ending Balance
A18: 201004 | B18: 176726.96 | C18: -42925.84 | D18: 133801.12
A19: 201005 | B19: 133801.12 | C19: -27347.37 | D19: 106453.75
A20: 201006 | B20: 106453.75 | C20: 17666.54 | D20: 124120.29 | E20: See Note (1)
C21: Sum: -52,606.67
A23: GL Account Balance Accounting Period : '201004, 201005, 201006'
A25: Ferc Acct:182329 | B25: Ferc Acct Desc:REG ASSET- DECOUPLING PRIOR YE | C25: Service:GD | D25: Jurisdiction:WA
A27: Accounting Period | B27: Beginning Balance | C27: Monthly Activity | D27: Ending Balance
A28: 201004 | B28: 0 | C28: 0 | D28: 0
A29: 201005 | B29: 0 | C29: 0 | D29: 0
A30: 201006 | B30: 0 | C30: 0 | D30: 0
C31: Sum: 0.00
A33: GL Account Balance Accounting Period : '201004, 201005, 201006'
A35: Ferc Acct:283328 | B35: Ferc Acct Desc:ADFIT DECOUPLING DEFERRED REV | C35: Service:GD | D35: Jurisdiction:WA
A37: Accounting Period | B37: Beginning Balance | C37: Monthly Activity | D37: Ending Balance
A38: 201004 | B38: -209810.69 | C38: 168.29 | D38: -209642.4
A39: 201005 | B39: -209642.4 | C39: 6138.78 | D39: -203503.62
A40: 201006 | B40: -203503.62 | C40: -41909.89 | D40: -245413.51
C41: Sum: -35,602.82
A44: Income Statement Accounts
A46: GL Account Balance Accounting Period : '201004, 201005, 201006'
A48: Ferc Acct:407428 | B48: Ferc Acct Desc:REG CREDIT DECOUPLING DEF REV | C48: Service:GD | D48: Jurisdiction:WA
A50: Accounting Period | B50: Beginning Balance | C50: Monthly Activity | D50: Ending Balance
A51: 201004 | B51: -233860 | C51: -42445 | D51: -276305
A52: 201005 | B52: -276305 | C52: -9808 | D52: -286113
A53: 201006 | B53: -286113 | C53: -102076 | D53: -388189
C54: Sum: -154,329.00
A57: GL Account Balance Accounting Period : '201004, 201005, 201006'
A59: Ferc Acct:407328 | B59: Ferc Acct Desc:REG DEBIT DECOUPLING DEF REV | C59: Service:GD | D59: Jurisdiction:WA
A61: Accounting Period | B61: Beginning Balance | C61: Monthly Activity | D61: Ending Balance
A62: 201004 | B62: 65742 | C62: 0 | D62: 65742
A63: 201006 | B63: 65742 | C63: 0 | D63: 65742
A64: 201005 | B64: 65742 | C64: 0 | D64: 65742
C65: Sum: 0.00
A68: GL Account Balance Accounting Period : '201004, 201005, 201006'
A70: Ferc Acct:407329 | B70: Ferc Acct Desc:REG DEBIT AMT DECOUPLING SURCH | C70: Service:GD | D70: Jurisdiction:WA
A72: Accounting Period | B72: Beginning Balance | C72: Monthly Activity | D72: Ending Balance
A73: 201004 | B73: 204387.05 | C73: 43345.78 | D73: 247732.83
A74: 201005 | B74: 247732.83 | C74: 27672.28 | D74: 275405.11
A75: 201006 | B75: 275405.11 | C75: -14936.55 | D75: 260468.56 | E75: See Note (1)
C76: Sum: 56,081.51
A78: Note (1) The June 2010 decoupling surcharge amortization journal entry included a correction for prior period decoupling surcharge amortization entry errors that occurred in April and July of 2009 totalling $31,715.78 plus an accumulated interest correction of $2,421.45 affecting the 182328 balance sheet account. The surcharge amortization errors were identified in the process of preparing a data response in WUTC Docket No. UG-100468.
